2CCN - Level 2 Cost Centre Name,,9CCN - Level 9 Cost Centre Name,9CCC - Level 9 Cost Centre Code,9AN - Level 9 Account Name,9AC - Level 9 Account Code,Date posted,Date of transaction,Merchant Name,Merchant City,Merchant State,Merchant Zip Code,Originating Account Name,Originating Account Number,MCC/SIC Code,MCC Description,Original Amount,Currency,Conversion Rate,Billed Amount,Debit Credit,Reference Number,Statement Cycle,Account Name
Gloucester City Council,23UE,Museum of Gloucester,MU002,General Supplies/Materials,3025,03/02/2021,02/02/2021,POUNDLAND LTD 1167,GLOUCESTER,,GL11XH,REDACTED,556*********9934,5310,DISCOUNT STORES,15,Pound Sterling (826),1.000000000,15,Debit,85481471034285584206444,02/03/2021,GLOUCESTER CITY COUNCIL
Gloucester City Council,23UE,Museum of Gloucester,MU002,General Supplies/Materials,3025,04/02/2021,03/02/2021,POST OFFICE COUNTER,GLOUCESTER,,GL1 1AD,REDACTED,556*********9934,9402,POSTAGE STAMPS,7.65,Pound Sterling (826),1.000000000,7.65,Debit,55504431034194271134465,02/03/2021,GLOUCESTER CITY COUNCIL
Gloucester City Council,23UE,Museum of Gloucester,MU002,Grant Payments,3901,08/02/2021,05/02/2021,AMZNMKTPLACE AMAZON.CO,AMAZON.CO.UK,GBR,EC2A 2FA,REDACTED,556*********9934,5999,MISCELLANEOUS AND RETAIL STORES,43.82,Pound Sterling (826),1.000000000,43.82,Debit,85389241036105727126945,02/03/2021,GLOUCESTER CITY COUNCIL
Gloucester City Council,23UE,Museum of Gloucester,MU002,General Supplies/Materials,3025,10/02/2021,09/02/2021,TIMPSON LTD,GLOUCESTER AS,,GL1 1DS,REDACTED,556*********9934,5999,MISCELLANEOUS AND RETAIL STORES,26,Pound Sterling (826),1.000000000,26,Debit,55504431040025315003625,02/03/2021,GLOUCESTER CITY COUNCIL
Gloucester City Council,23UE,Museum of Gloucester,MU002,General Supplies/Materials,3025,10/02/2021,09/02/2021,WH SMITH,GLOUCESTER,GBR,GL1 1NZ,REDACTED,556*********9934,5994,NEWS DEALERS AND NEWSSTANDS,12.45,Pound Sterling (826),1.000000000,12.45,Debit,05130861041910034870459,02/03/2021,GLOUCESTER CITY COUNCIL
Gloucester City Council,23UE,Gloucester Life Museum,MU005,Advertising & Publicity,3404,11/02/2021,10/02/2021,AMZNMktplace,amazon.co.uk,GBR,EC2A 2FA,REDACTED,556*********9934,5999,MISCELLANEOUS AND RETAIL STORES,11.98,Pound Sterling (826),1.000000000,11.98,Debit,52692011041200243682570,02/03/2021,GLOUCESTER CITY COUNCIL
Gloucester City Council,23UE,Museum of Gloucester,MU002,General Supplies/Materials,3025,11/02/2021,10/02/2021,LYCO GROUP LTD,MILTON KEYNES,GBR,MK1 1ZR,REDACTED,556*********9934,5065,ELECTRICAL PARTS AND EQUIPMENT,43.4,Pound Sterling (826),1.000000000,43.4,Debit,15122621042000197600269,02/03/2021,GLOUCESTER CITY COUNCIL
Gloucester City Council,23UE,Gloucester Life Museum,MU005,Advertising & Publicity,3404,11/02/2021,10/02/2021,AMZNMktplace,amazon.co.uk,GBR,EC2A 2FA,REDACTED,556*********9934,5999,MISCELLANEOUS AND RETAIL STORES,189.9,Pound Sterling (826),1.000000000,189.9,Debit,52692011041200289810572,02/03/2021,GLOUCESTER CITY COUNCIL
Gloucester City Council,23UE,Museum of Gloucester,MU002,General Supplies/Materials,3025,11/02/2021,10/02/2021,LOVE SHOPPING DIRECT L,PERRY BARR,,B42 1TX,REDACTED,556*********9934,5722,HOUSEHOLD APPLIANCE STORES,74.5,Pound Sterling (826),1.000000000,74.5,Debit,85481471042287082924445,02/03/2021,GLOUCESTER CITY COUNCIL
Gloucester City Council,23UE,Museum of Gloucester,MU002,General Supplies/Materials,3025,12/02/2021,11/02/2021,GENERAL LAMPS LTD,HIGH WYCOMBE,,HP143BY,REDACTED,556*********9934,5722,HOUSEHOLD APPLIANCE STORES,38.88,Pound Sterling (826),1.000000000,38.88,Debit,85481471042287169521551,02/03/2021,GLOUCESTER CITY COUNCIL
Gloucester City Council,23UE,Museum of Gloucester,MU002,General Supplies/Materials,3025,15/02/2021,12/02/2021,AMZNMktplace,amazon.co.uk,GBR,EC2A 2FA,REDACTED,556*********9934,5999,MISCELLANEOUS AND RETAIL STORES,40.46,Pound Sterling (826),1.000000000,40.46,Debit,52692011043200779353420,02/03/2021,GLOUCESTER CITY COUNCIL
Gloucester City Council,23UE,Museum of Gloucester,MU002,Grant Payments,3901,17/02/2021,16/02/2021,AMZNMKTPLACE AMAZON.CO,AMAZON.CO.UK,GBR,EC2A 2FA,REDACTED,556*********9934,5999,MISCELLANEOUS AND RETAIL STORES,189.48,Pound Sterling (826),1.000000000,189.48,Debit,85389241047106902782749,02/03/2021,GLOUCESTER CITY COUNCIL
Gloucester City Council,23UE,Museum of Gloucester,MU002,Grant Payments,3901,17/02/2021,16/02/2021,AMZNMktplace,amazon.co.uk,GBR,EC2A 2FA,REDACTED,556*********9934,5999,MISCELLANEOUS AND RETAIL STORES,192.49,Pound Sterling (826),1.000000000,192.49,Debit,52692011047200753741224,02/03/2021,GLOUCESTER CITY COUNCIL
Gloucester City Council,23UE,Museum of Gloucester,MU002,General Supplies/Materials,3025,18/02/2021,17/02/2021,eBay O*03-06596-31664,Luxembourg,LUX,2449,REDACTED,556*********9934,5311,DEPARTMENT STORES,12.59,Pound Sterling (826),1.000000000,12.59,Debit,15265671048003438478723,02/03/2021,GLOUCESTER CITY COUNCIL
Gloucester City Council,23UE,Healthy Homes,PS001,Compensation Payments,3711,03/02/2021,01/02/2021,TVLICENSING.CO.UK,3007906071,,BS1 6AB,REDACTED,556*********1418,7392,"MANAGEMENT, CONSULTING AND PUBLIC RELATIONS SERVICES",157.5,Pound Sterling (826),1.000000000,157.5,Debit,85481471033285557999471,02/03/2021,GLOUCESTER CITY COUNCIL
Gloucester City Council,23UE,Healthy Homes,PS001,Compensation Payments,3711,09/02/2021,05/02/2021,NOW TV,.,,EH54 7BW,REDACTED,556*********1418,4899,"CABLE,SATELLITE & OTHER TV/RADIO SERVICE",18.4,Pound Sterling (826),1.000000000,18.4,Debit,55504431039039313596749,02/03/2021,GLOUCESTER CITY COUNCIL
Gloucester City Council,23UE,Countryside Unit,EP003,Operative Clothing Allowances,0502,10/02/2021,09/02/2021,AMZNMktplace,amazon.co.uk,GBR,EC2A 2FA,REDACTED,556*********6734,5999,MISCELLANEOUS AND RETAIL STORES,19.65,Pound Sterling (826),1.000000000,19.65,Debit,52692011040200988627963,02/03/2021,GLOUCESTER CITY COUNCIL
Gloucester City Council,23UE,Countryside Unit,EP003,Building Repairs and Maintenance,1001,11/02/2021,10/02/2021,GLOUCESTER LOCKSMITHS,GLOUCESTER,GBR,GL2 4NZ,REDACTED,556*********6734,7399,BUSINESS SERVICES NOT ELSEWHERE CLASSIFIED,9,Pound Sterling (826),1.000000000,9,Debit,55184221041540414661736,02/03/2021,GLOUCESTER CITY COUNCIL
Gloucester City Council,23UE,Countryside Unit,EP003,Vehicle Repairs and Maintenance,2103,15/02/2021,12/02/2021,eBay O*16-06567-56329,Luxembourg,LUX,2449,REDACTED,556*********6734,5311,DEPARTMENT STORES,34.45,Pound Sterling (826),1.000000000,34.45,Debit,15265671043002479798739,02/03/2021,GLOUCESTER CITY COUNCIL
Gloucester City Council,23UE,Countryside Unit,EP003,Operative Clothing Allowances,0502,15/02/2021,12/02/2021,AMZNMktplace,amazon.co.uk,GBR,EC2A 2FA,REDACTED,556*********6734,5999,MISCELLANEOUS AND RETAIL STORES,17.98,Pound Sterling (826),1.000000000,17.98,Debit,52692011043200744058054,02/03/2021,GLOUCESTER CITY COUNCIL
Gloucester City Council,23UE,Countryside Unit,EP003,Operative Clothing Allowances,0502,16/02/2021,15/02/2021,AMZNMktplace,amazon.co.uk,GBR,EC2A 2FA,REDACTED,556*********6734,5999,MISCELLANEOUS AND RETAIL STORES,18.95,Pound Sterling (826),1.000000000,18.95,Debit,52692011046200516285858,02/03/2021,GLOUCESTER CITY COUNCIL
Gloucester City Council,23UE,Countryside Unit,EP003,Grounds Maintenance,1100,16/02/2021,15/02/2021,WALCOT ORGANIC NUR,PERSHORE,,WR10 2AL,REDACTED,556*********6734,5499,"MISC FOOD STORES-SPECIALITY,CONVENIENCE,MARKETS,VENDING MACHINES",42,Pound Sterling (826),1.000000000,42,Debit,55504431046110214114477,02/03/2021,GLOUCESTER CITY COUNCIL
Gloucester City Council,23UE,Museum of Gloucester,MU002,Equipment and Furniture,3001,03/02/2021,01/02/2021,PAYPAL *ZHUTINGMAOY EB,35314369001,GBR,TW91EH,REDACTED,556*********5672,5311,DEPARTMENT STORES,20.85,Pound Sterling (826),1.000000000,20.85,Debit,85130081033104209298905,02/03/2021,GLOUCESTER CITY COUNCIL
Gloucester City Council,23UE,Museum of Gloucester,MU002,Grant Payments,3901,04/02/2021,03/02/2021,CANVA* 02955-12486017,8778877815,DE,19934,REDACTED,556*********5672,7221,PHOTOGRAPHIC STUDIOS,107.88,Pound Sterling (826),1.000000000,107.88,Debit,55429501034637560278957,02/03/2021,GLOUCESTER CITY COUNCIL
Gloucester City Council,23UE,Museum of Gloucester,MU002,Equipment and Furniture,3001,04/02/2021,03/02/2021,WWW.3DDISPLAYS.CO.,FAVERSHAM,,ME13 7DZ,REDACTED,556*********5672,5399,MISCELLANEOUS GENERAL MERCHANDISE STORES,175.73,Pound Sterling (826),1.000000000,175.73,Debit,85481471035285787776978,02/03/2021,GLOUCESTER CITY COUNCIL
Gloucester City Council,23UE,Guildhall Events,GH002,Grant Payments,3901,12/02/2021,11/02/2021,PEPPERMILL ANTIQUES LT,BURNTWOOD,GBR,WS7 3JQ,REDACTED,556*********5672,5932,ANTIQUE SHOPS,180,Pound Sterling (826),1.000000000,180,Debit,15122621043002032810045,02/03/2021,GLOUCESTER CITY COUNCIL
Gloucester City Council,23UE,Guildhall Events,GH002,Grant Payments,3901,15/02/2021,12/02/2021,PAYPAL *NNICOLSON EBAY,35314369001,GBR,TW91EH,REDACTED,556*********5672,5999,MISCELLANEOUS AND RETAIL STORES,90,Pound Sterling (826),1.000000000,90,Debit,85130081043106927094969,02/03/2021,GLOUCESTER CITY COUNCIL
Gloucester City Council,23UE,Guildhall Events,GH002,Grant Payments,3901,15/02/2021,12/02/2021,PAYPAL *NNICOLSON EBAY,35314369001,GBR,TW91EH,REDACTED,556*********5672,5999,MISCELLANEOUS AND RETAIL STORES,80,Pound Sterling (826),1.000000000,80,Debit,85130081043106927098200,02/03/2021,GLOUCESTER CITY COUNCIL
Gloucester City Council,23UE,Guildhall Cinema,GH003,Grant Payments,3901,15/02/2021,12/02/2021,WWW.LIGHTINGCOMPANY.CO,MINEHEAD,,TA24 5DE,REDACTED,556*********5672,5732,ELECTRONIC SALES,283.5,Pound Sterling (826),1.000000000,283.5,Debit,55203341044003000421312,02/03/2021,GLOUCESTER CITY COUNCIL
Gloucester City Council,23UE,Museum of Gloucester,MU002,Grant Payments,3901,16/02/2021,16/02/2021,GOOGLE Google Store,London,GBR,EC4A 3TW,REDACTED,556*********5672,5732,ELECTRONIC SALES,349,Pound Sterling (826),1.000000000,349,Debit,15265671047002039514051,02/03/2021,GLOUCESTER CITY COUNCIL
Gloucester City Council,23UE,Museum of Gloucester,MU002,Grant Payments,3901,19/02/2021,18/02/2021,EB *WELCOMING FAMILIES,801-413-7200,IRL,DUBLIN 8,REDACTED,556*********5672,7399,BUSINESS SERVICES NOT ELSEWHERE CLASSIFIED,27.54,Pound Sterling (826),1.000000000,27.54,Debit,15424521050000149825366,02/03/2021,GLOUCESTER CITY COUNCIL
Gloucester City Council,23UE,Museum of Gloucester,MU002,Grant Payments,3901,19/02/2021,18/02/2021,EB *WELCOMING FAMILIES,801-413-7200,IRL,DUBLIN 8,REDACTED,556*********5672,7399,BUSINESS SERVICES NOT ELSEWHERE CLASSIFIED,27.54,Pound Sterling (826),1.000000000,27.54,Debit,15424521050000149825689,02/03/2021,GLOUCESTER CITY COUNCIL
Gloucester City Council,23UE,Guildhall Events,GH002,Grant Payments,3901,22/02/2021,19/02/2021,MUSIC STORE profession,K�ln,DEU,51103,REDACTED,556*********5672,5733,"MUSIC STORES-MUSICAL INSTRUMENTS, PIANOS, SHEET MUSIC",54,Pound Sterling (826),1.000000000,54,Debit,05402841050013683640355,02/03/2021,GLOUCESTER CITY COUNCIL
Gloucester City Council,23UE,Guildhall Events,GH002,Grant Payments,3901,23/02/2021,22/02/2021,MUSIC STORE profession,K�ln,DEU,51103,REDACTED,556*********5672,5733,"MUSIC STORES-MUSICAL INSTRUMENTS, PIANOS, SHEET MUSIC",54,Pound Sterling (826),1.000000000,54,Debit,05402841053013794451707,02/03/2021,GLOUCESTER CITY COUNCIL
Gloucester City Council,23UE,Guildhall Events,GH002,Grant Payments,3901,24/02/2021,23/02/2021,AMZNMktplace,amazon.co.uk,GBR,EC2A 2FA,REDACTED,556*********5672,5999,MISCELLANEOUS AND RETAIL STORES,48.98,Pound Sterling (826),1.000000000,48.98,Debit,52692011054200566110096,02/03/2021,GLOUCESTER CITY COUNCIL
Gloucester City Council,23UE,Museum of Gloucester,MU002,Grant Payments,3901,25/02/2021,24/02/2021,THE CARD NETWORK,DEESIDE,LND,CH5 2QS,REDACTED,556*********5672,2741,MISCELLANEOUS PUBLISHING & PRINTING,72.12,Pound Sterling (826),1.000000000,72.12,Debit,85383901055000003117240,02/03/2021,GLOUCESTER CITY COUNCIL
Gloucester City Council,23UE,Museum of Gloucester,MU002,Grant Payments,3901,01/03/2021,26/02/2021,Creative Cloud Indiv,ADOBE.LY/BILL,IRL,D24,REDACTED,556*********5672,5734,COMPUTER SOFTWARE STORES,596.33,Pound Sterling (826),1.000000000,596.33,Debit,55204721057200239618488,02/03/2021,GLOUCESTER CITY COUNCIL
Gloucester City Council,23UE,Museum of Gloucester,MU002,Grant Payments,3901,01/03/2021,26/02/2021,eBay O*15-06643-71954,Luxembourg,LUX,2449,REDACTED,556*********5672,5311,DEPARTMENT STORES,10.57,Pound Sterling (826),1.000000000,10.57,Debit,15265671057417865148724,02/03/2021,GLOUCESTER CITY COUNCIL
Gloucester City Council,23UE,Guildhall Cinema,GH003,Grant Payments,3901,01/03/2021,26/02/2021,Amazon.co.uk*MM0QH7NU4,AMAZON.CO.UK,LUX,L2338,REDACTED,556*********5672,5969,ALL OTHER DIRECT MARKETERS,139.46,Pound Sterling (826),1.000000000,139.46,Debit,52692011057200326011607,02/03/2021,GLOUCESTER CITY COUNCIL
Gloucester City Council,23UE,Museum of Gloucester,MU002,Equipment and Furniture,3001,01/03/2021,26/02/2021,PAYPAL *GUOMINGJIE EBA,35314369001,GBR,TW91EH,REDACTED,556*********5672,5331,VARIETY STORES,20.91,Pound Sterling (826),1.000000000,20.91,Debit,85130081057108873242025,02/03/2021,GLOUCESTER CITY COUNCIL
Gloucester City Council,23UE,Museum of Gloucester,MU002,Equipment and Furniture,3001,01/03/2021,26/02/2021,PAYPAL *SHUANGLEIMA EB,35314369001,GBR,TW91EH,REDACTED,556*********5672,5641,CHILDREN'S AND INFANTS' WEAR STORES,17.56,Pound Sterling (826),1.000000000,17.56,Debit,85130081057108873238148,02/03/2021,GLOUCESTER CITY COUNCIL
Gloucester City Council,23UE,Museum of Gloucester,MU002,Grant Payments,3901,01/03/2021,26/02/2021,MUSEUMS ASCTN,LONDON,,EC1R 0AZ,REDACTED,556*********5672,5971,ART DEALERS AND GALLERIES,80,Pound Sterling (826),1.000000000,80,Debit,85481471058290105318190,02/03/2021,GLOUCESTER CITY COUNCIL
Gloucester City Council,23UE,Civica Admin Charges,BI002,Professional Advice/Consultants Fees,3952,16/02/2021,15/02/2021,WWW.GOV.UK,C@HMCTS.GSI.G,,LS1 2BA,REDACTED,556*********4301,8999,PROFESSIONAL SERVICES NOT ELSEWHERE CLASSIFIED,4.5,Pound Sterling (826),1.000000000,4.5,Debit,85481471047288027767589,02/03/2021,GLOUCESTER CITY COUNCIL
Gloucester City Council,23UE,Docks Complex - Services,AM006,Building Repairs and Maintenance,1001,01/03/2021,26/02/2021,B & Q 1179,GLOUCESTER,,GL12SG,REDACTED,556*********4301,5200,HOME SUPPLY WAREHOUSE STORES,12.97,Pound Sterling (826),1.000000000,12.97,Debit,85481471058290135541480,02/03/2021,GLOUCESTER CITY COUNCIL
Gloucester City Council,23UE,Docks Complex - Services,AM006,Building Repairs and Maintenance,1001,16/02/2021,15/02/2021,AMZNMktplace,amazon.co.uk,GBR,EC2A 2FA,REDACTED,556*********6128,5999,MISCELLANEOUS AND RETAIL STORES,5.95,Pound Sterling (826),1.000000000,5.95,Debit,52692011046200576031879,02/03/2021,GLOUCESTER CITY COUNCIL
Gloucester City Council,23UE,Elections,DS004,Equipment and Furniture,3001,26/02/2021,25/02/2021,AMZNMktplace,amazon.co.uk,GBR,EC2A 2FA,REDACTED,556*********4234,5999,MISCELLANEOUS AND RETAIL STORES,9.69,Pound Sterling (826),1.000000000,9.69,Debit,52692011056200127950343,02/03/2021,GLOUCESTER CITY COUNCIL
Gloucester City Council,23UE,Elections,DS004,Equipment and Furniture,3001,01/03/2021,26/02/2021,AMZNMKTPLACE AMAZON.CO,AMAZON.CO.UK,GBR,EC2A 2FA,REDACTED,556*********4234,5999,MISCELLANEOUS AND RETAIL STORES,203.49,Pound Sterling (826),1.000000000,203.49,Debit,85389241057108057263613,02/03/2021,GLOUCESTER CITY COUNCIL
Gloucester City Council,23UE,Gloucester Guildhall,GH001,Building Repairs and Maintenance,1001,26/02/2021,25/02/2021,B & Q 1179,GLOUCESTER,,GL12SG,REDACTED,556*********4253,5200,HOME SUPPLY WAREHOUSE STORES,494,Pound Sterling (826),1.000000000,494,Debit,85481471057289877531627,02/03/2021,GLOUCESTER CITY COUNCIL
Gloucester City Council,23UE,Gloucester Guildhall,GH001,Building Repairs and Maintenance,1001,26/02/2021,25/02/2021,B & Q 1179,GLOUCESTER,,GL12SG,REDACTED,556*********4253,5200,HOME SUPPLY WAREHOUSE STORES,114.18,Pound Sterling (826),1.000000000,114.18,Debit,85481471057289877531643,02/03/2021,GLOUCESTER CITY COUNCIL
Gloucester City Council,23UE,Guildhall Events,GH002,Advertising & Publicity,3404,01/03/2021,26/02/2021,Etsy.com - ArtzoneSign,Dublin,IRL,1,REDACTED,556*********4253,5699,MISCELLANEOUS APPAREL AND ACCESSORY STOR,416.82,Pound Sterling (826),1.000000000,416.82,Debit,15265671057005043725859,02/03/2021,GLOUCESTER CITY COUNCIL
Gloucester City Council,23UE,Gloucester Guildhall,GH001,Building Repairs and Maintenance,1001,01/03/2021,27/02/2021,B & Q 1179,GLOUCESTER,,GL12SG,REDACTED,556*********4253,5200,HOME SUPPLY WAREHOUSE STORES,74.6,Pound Sterling (826),1.000000000,74.6,Debit,85481471059290360573249,02/03/2021,GLOUCESTER CITY COUNCIL
Gloucester City Council,23UE,Guildhall Events,GH002,Equipment and Furniture,3001,01/03/2021,27/02/2021,THE RANGE,GLOUCESTER,,GL4 3BY,REDACTED,556*********4253,5311,DEPARTMENT STORES,129.98,Pound Sterling (826),1.000000000,129.98,Debit,85481471059290305677774,02/03/2021,GLOUCESTER CITY COUNCIL
Gloucester City Council,23UE,Gloucester Guildhall,GH001,Equipment and Furniture,3001,01/03/2021,26/02/2021,AMZNMKTPLACE AMAZON.CO,AMAZON.CO.UK,GBR,EC2A 2FA,REDACTED,556*********4253,5999,MISCELLANEOUS AND RETAIL STORES,416.82,Pound Sterling (826),1.000000000,416.82,Debit,85389241058108067008270,02/03/2021,GLOUCESTER CITY COUNCIL
Gloucester City Council,23UE,Human Resources Shared Service,HR001,Professional Advice/Consultants Fees,3952,04/02/2021,03/02/2021,DISCLOSURE AND BARRING,LIVERPOOL,GBR,L3 1QY,REDACTED,556*********3063,9399,GOVERNMENT SERVICES NOT ELSEWHERE CLASSIFIED,23,Pound Sterling (826),1.000000000,23,Debit,05272471035910033060049,02/03/2021,GLOUCESTER CITY COUNCIL
Gloucester City Council,23UE,Museum of Gloucester,MU002,Grant Payments,3901,18/02/2021,17/02/2021,Jessops,Marlow,GBR,SL7 1EY,REDACTED,556*********3063,5946,CAMERA AND PHOTOGRAPHIC SUPPLY STORES,899,Pound Sterling (826),1.000000000,899,Debit,15265671048265454891143,02/03/2021,GLOUCESTER CITY COUNCIL
Gloucester City Council,23UE,Business Transformation,BI006,"ICT Software, Licences & Support",3521,22/02/2021,20/02/2021,EASILY LTD,00 44 207 015,GBR,E14 5LQ,REDACTED,556*********3063,4816,COMPUTER NETWORK/INFORMATION SERVICES,18,Pound Sterling (826),1.000000000,18,Debit,15122621053001537410191,02/03/2021,GLOUCESTER CITY COUNCIL
Gloucester City Council,23UE,Guildhall Cinema,GH003,Grant Payments,3901,03/02/2021,02/02/2021,WWW.LIGHTINGCOMPANY.CO,MINEHEAD,,TA24 5DE,REDACTED,556*********1585,5732,ELECTRONIC SALES,61.15,Pound Sterling (826),1.000000000,61.15,Debit,55203341034003000436155,02/03/2021,GLOUCESTER CITY COUNCIL
Gloucester City Council,23UE,Events,GH008,Events/Heritage,3070/C282,08/02/2021,05/02/2021,SCREWFIX DIR LTD,GLOUC1027,,GL43SJ,REDACTED,556*********1585,5211,LUMBER AND BUILDING MATERIALS STORES,51.92,Pound Sterling (826),1.000000000,51.92,Debit,85481471037286180839411,02/03/2021,GLOUCESTER CITY COUNCIL
Gloucester City Council,23UE,Guildhall Events,GH002,Advertising & Publicity,3404,18/02/2021,18/02/2021,MailChimp,30308,GA,30308,REDACTED,556*********1585,5818,DIGITAL GOODS - MULTI-CATEGORY,45.9,Pound Sterling (826),1.000000000,45.9,Debit,15270211049000046656721,02/03/2021,GLOUCESTER CITY COUNCIL
Gloucester City Council,23UE,Guildhall Events,GH002,Advertising & Publicity,3404,19/02/2021,18/02/2021,WWW.DIGITALPRINTING.CO,02890222111,,BT3 9JP,REDACTED,556*********1585,7338,QUICK-COPY AND REPRODUCTION SERVICES,43.14,Pound Sterling (826),1.000000000,43.14,Debit,55504431049295339867021,02/03/2021,GLOUCESTER CITY COUNCIL
Gloucester City Council,23UE,Museum of Gloucester,MU002,Grant Payments,3901,23/02/2021,22/02/2021,EB *INTERMEDIATE IPHON,801-413-7200,IRL,DUBLIN 8,REDACTED,556*********1585,7399,BUSINESS SERVICES NOT ELSEWHERE CLASSIFIED,16.76,Pound Sterling (826),1.000000000,16.76,Debit,15424521054000151183478,02/03/2021,GLOUCESTER CITY COUNCIL
Gloucester City Council,23UE,Blackfriars,GH010,Equipment and Furniture,3001,01/03/2021,26/02/2021,MARKS&SPENCER PLC,INTERNET,GBR,M50 3SP,REDACTED,556*********1585,5411,"GROCERY STORES, SUPERMARKETS",43.5,Pound Sterling (826),1.000000000,43.5,Debit,05130861058910040769158,02/03/2021,GLOUCESTER CITY COUNCIL
Gloucester City Council,23UE,Blackfriars,GH010,Equipment and Furniture,3001,01/03/2021,26/02/2021,ARGOS LTD,INTERNET,,MK92NW,REDACTED,556*********1585,5310,DISCOUNT STORES,24,Pound Sterling (826),1.000000000,24,Debit,85481471059290297942996,02/03/2021,GLOUCESTER CITY COUNCIL
Gloucester City Council,23UE,Blackfriars,GH010,Equipment and Furniture,3001,01/03/2021,27/02/2021,AMZNMktplace,amazon.co.uk,GBR,EC2A 2FA,REDACTED,556*********1585,5999,MISCELLANEOUS AND RETAIL STORES,64.98,Pound Sterling (826),1.000000000,64.98,Debit,52692011058200607414768,02/03/2021,GLOUCESTER CITY COUNCIL
Gloucester City Council,23UE,Blackfriars,GH010,Equipment and Furniture,3001,01/03/2021,28/02/2021,AMZNMktplace,amazon.co.uk,GBR,EC2A 2FA,REDACTED,556*********1585,5999,MISCELLANEOUS AND RETAIL STORES,18.99,Pound Sterling (826),1.000000000,18.99,Debit,52692011059200781117541,02/03/2021,GLOUCESTER CITY COUNCIL
Gloucester City Council,23UE,Blackfriars,GH010,Advertising & Publicity,3404,02/03/2021,01/03/2021,ROCK MY WEDDING,LONDON,LND,SW13 9JJ,REDACTED,556*********1585,8699,MEMBERSHIP ORGANIZATIONS NOT ELSEWHERE CLASSIFIED,12,Pound Sterling (826),1.000000000,12,Debit,85383901060000002584070,02/03/2021,GLOUCESTER CITY COUNCIL
Gloucester City Council,23UE,Crematorium,CC003,General Supplies/Materials,3025,19/02/2021,18/02/2021,B&M 448 - CONEY HILL,CONEY HILL,GBR,GL4 3BY,REDACTED,556*********0923,5399,MISCELLANEOUS GENERAL MERCHANDISE STORES,14,Pound Sterling (826),1.000000000,14,Debit,05272461050910013348910,02/03/2021,GLOUCESTER CITY COUNCIL
Gloucester City Council,23UE,Crematorium,CC003,General Supplies/Materials,3025,23/02/2021,22/02/2021,ALDI STORES,GLOUCESTER,,GL3 3SL,REDACTED,556*********0923,5411,"GROCERY STORES, SUPERMARKETS",5.98,Pound Sterling (826),1.000000000,5.98,Debit,85481471054289390297501,02/03/2021,GLOUCESTER CITY COUNCIL
Gloucester City Council,23UE,Business Transformation,BI006,Postage,3530,03/02/2021,02/02/2021,ROYAL MAIL GROUP LTD,CHESTERFIELD,GBR,S49 1ZS,REDACTED,556*********4450,9402,POSTAGE STAMPS,3.68,Pound Sterling (826),1.000000000,3.68,Debit,05272471034910030052412,02/03/2021,GLOUCESTER CITY COUNCIL
Gloucester City Council,23UE,Business Transformation,BI006,"ICT Software, Licences & Support",3521,03/02/2021,02/02/2021,Jam Software GmbH,Trier,DEU,54296,REDACTED,556*********4450,5734,COMPUTER SOFTWARE STORES,46.96,Euro (978),1.096427737,42.83,Debit,05372011033290016888194,02/03/2021,GLOUCESTER CITY COUNCIL
Gloucester City Council,23UE,Business Transformation,BI006,"ICT Software, Licences & Support",3521,17/02/2021,16/02/2021,AMZNMktplace,amazon.co.uk,GBR,EC2A 2FA,REDACTED,556*********4450,5999,MISCELLANEOUS AND RETAIL STORES,85.48,Pound Sterling (826),1.000000000,85.48,Debit,52692011047200796693572,02/03/2021,GLOUCESTER CITY COUNCIL
Gloucester City Council,23UE,Housing Services,HS001,B&B Payments,1303,04/02/2021,01/02/2021,TRAVELODGE GB0809,GLOUCESTER,,GL1 5SF,REDACTED,556*********3914,3615,TRAVELODGE,30.99,Pound Sterling (826),1.000000000,30.99,Debit,55504431034110281130251,02/03/2021,GLOUCESTER CITY COUNCIL
Gloucester City Council,23UE,Housing Services,HS001,B&B Payments,1303,04/02/2021,01/02/2021,TRAVELODGE GB0809,GLOUCESTER,,GL1 5SF,REDACTED,556*********3914,3615,TRAVELODGE,33.49,Pound Sterling (826),1.000000000,33.49,Debit,55504431034110281130244,02/03/2021,GLOUCESTER CITY COUNCIL
Gloucester City Council,23UE,Housing Services,HS001,B&B Payments,1303,04/02/2021,01/02/2021,TRAVELODGE GB0816,NR STROUD GLO,,GL10 3SQ,REDACTED,556*********3914,3615,TRAVELODGE,250.43,Pound Sterling (826),1.000000000,250.43,Debit,55504431034110281193002,02/03/2021,GLOUCESTER CITY COUNCIL
Gloucester City Council,23UE,Housing Services,HS001,B&B Payments,1303,05/02/2021,02/02/2021,TRAVELODGE GB0809,GLOUCESTER,,GL1 5SF,REDACTED,556*********3914,3615,TRAVELODGE,236.43,Pound Sterling (826),1.000000000,236.43,Debit,55504431035110293105449,02/03/2021,GLOUCESTER CITY COUNCIL
Gloucester City Council,23UE,Housing Services,HS001,B&B Payments,1303,08/02/2021,05/02/2021,TRAVELODGE GB0000,THAME,,OX9 3AT,REDACTED,556*********3914,3615,TRAVELODGE,224.43,Pound Sterling (826),1.000000000,224.43,Debit,55504431036298100303650,02/03/2021,GLOUCESTER CITY COUNCIL
Gloucester City Council,23UE,Housing Services,HS001,B&B Payments,1303,08/02/2021,03/02/2021,TRAVELODGE GB0809,GLOUCESTER,,GL1 5SF,REDACTED,556*********3914,3615,TRAVELODGE,41.49,Pound Sterling (826),1.000000000,41.49,Debit,55504431036110206870724,02/03/2021,GLOUCESTER CITY COUNCIL
Gloucester City Council,23UE,Housing Services,HS001,B&B Payments,1303,08/02/2021,03/02/2021,TRAVELODGE GB0809,GLOUCESTER,,GL1 5SF,REDACTED,556*********3914,3615,TRAVELODGE,38.99,Pound Sterling (826),1.000000000,38.99,Debit,55504431036110206870716,02/03/2021,GLOUCESTER CITY COUNCIL
Gloucester City Council,23UE,Housing Services,HS001,B&B Payments,1303,08/02/2021,04/02/2021,TRAVELODGE GB0809,GLOUCESTER,,GL1 5SF,REDACTED,556*********3914,3615,TRAVELODGE,125.46,Pound Sterling (826),1.000000000,125.46,Debit,55504431037110217380753,02/03/2021,GLOUCESTER CITY COUNCIL
Gloucester City Council,23UE,Housing Services,HS001,B&B Payments,1303,08/02/2021,04/02/2021,TRAVELODGE GB0809,GLOUCESTER,,GL1 5SF,REDACTED,556*********3914,3615,TRAVELODGE,466.36,Pound Sterling (826),1.000000000,466.36,Debit,55504431037110217380761,02/03/2021,GLOUCESTER CITY COUNCIL
Gloucester City Council,23UE,Housing Services,HS001,B&B Payments,1303,08/02/2021,05/02/2021,TRAVELODGE GB0809,GLOUCESTER,,GL1 5SF,REDACTED,556*********3914,3615,TRAVELODGE,105.47,Pound Sterling (826),1.000000000,105.47,Debit,55504431038110222629334,02/03/2021,GLOUCESTER CITY COUNCIL
Gloucester City Council,23UE,Housing Services,HS001,B&B Payments,1303,08/02/2021,05/02/2021,TRAVELODGE GB0809,GLOUCESTER,,GL1 5SF,REDACTED,556*********3914,3615,TRAVELODGE,95.47,Pound Sterling (826),1.000000000,95.47,Debit,55504431038110222629342,02/03/2021,GLOUCESTER CITY COUNCIL
Gloucester City Council,23UE,Housing Services,HS001,B&B Payments,1303,08/02/2021,05/02/2021,TRAVELODGE GB0821,CHELTENHAM,,GL51 6TA,REDACTED,556*********3914,3615,TRAVELODGE,92.47,Pound Sterling (826),1.000000000,92.47,Debit,55504431038110222752383,02/03/2021,GLOUCESTER CITY COUNCIL
Gloucester City Council,23UE,Housing Services,HS001,B&B Payments,1303,09/02/2021,08/02/2021,IBIS GLOUCESTER,GLOUCESTER,GBR,GL43DG,REDACTED,556*********3914,3533,HOTEL IBIS,476,Pound Sterling (826),1.000000000,476,Debit,55184221039520406057063,02/03/2021,GLOUCESTER CITY COUNCIL
Gloucester City Council,23UE,Housing Services,HS001,B&B Payments,1303,10/02/2021,08/02/2021,TRAVELODGE GB0819,BRISTOL,,BS1 5TT,REDACTED,556*********3914,3615,TRAVELODGE,488.86,Pound Sterling (826),1.000000000,488.86,Debit,55504431040110241485086,02/03/2021,GLOUCESTER CITY COUNCIL
Gloucester City Council,23UE,Housing Services,HS001,B&B Payments,1303,11/02/2021,08/02/2021,TRAVELODGE GB0809,GLOUCESTER,,GL1 5SF,REDACTED,556*********3914,3615,TRAVELODGE,263.42,Pound Sterling (826),1.000000000,263.42,Debit,55504431041110259092591,02/03/2021,GLOUCESTER CITY COUNCIL
Gloucester City Council,23UE,Housing Services,HS001,B&B Payments,1303,11/02/2021,08/02/2021,TRAVELODGE GB0809,GLOUCESTER,,GL1 5SF,REDACTED,556*********3914,3615,TRAVELODGE,107.47,Pound Sterling (826),1.000000000,107.47,Debit,55504431041110259092583,02/03/2021,GLOUCESTER CITY COUNCIL
Gloucester City Council,23UE,Housing Services,HS001,B&B Payments,1303,11/02/2021,08/02/2021,TRAVELODGE GB0809,GLOUCESTER,,GL1 5SF,REDACTED,556*********3914,3615,TRAVELODGE,140.46,Pound Sterling (826),1.000000000,140.46,Debit,55504431041110259092575,02/03/2021,GLOUCESTER CITY COUNCIL
Gloucester City Council,23UE,Housing Services,HS001,B&B Payments,1303,11/02/2021,08/02/2021,TRAVELODGE GB0809,GLOUCESTER,,GL1 5SF,REDACTED,556*********3914,3615,TRAVELODGE,139.46,Pound Sterling (826),1.000000000,139.46,Debit,55504431041110259092625,02/03/2021,GLOUCESTER CITY COUNCIL
Gloucester City Council,23UE,Housing Services,HS001,B&B Payments,1303,11/02/2021,08/02/2021,TRAVELODGE GB0809,GLOUCESTER,,GL1 5SF,REDACTED,556*********3914,3615,TRAVELODGE,140.46,Pound Sterling (826),1.000000000,140.46,Debit,55504431041110259092617,02/03/2021,GLOUCESTER CITY COUNCIL
Gloucester City Council,23UE,Housing Services,HS001,B&B Payments,1303,11/02/2021,08/02/2021,TRAVELODGE GB0809,GLOUCESTER,,GL1 5SF,REDACTED,556*********3914,3615,TRAVELODGE,139.46,Pound Sterling (826),1.000000000,139.46,Debit,55504431041110259092609,02/03/2021,GLOUCESTER CITY COUNCIL
Gloucester City Council,23UE,Housing Services,HS001,B&B Payments,1303,11/02/2021,08/02/2021,TRAVELODGE GB0821,CHELTENHAM,,GL51 6TA,REDACTED,556*********3914,3615,TRAVELODGE,32.49,Pound Sterling (826),1.000000000,32.49,Debit,55504431041110259191971,02/03/2021,GLOUCESTER CITY COUNCIL
Gloucester City Council,23UE,Housing Services,HS001,B&B Payments,1303,11/02/2021,08/02/2021,TRAVELODGE GB0821,CHELTENHAM,,GL51 6TA,REDACTED,556*********3914,3615,TRAVELODGE,122.46,Pound Sterling (826),1.000000000,122.46,Debit,55504431041110259191989,02/03/2021,GLOUCESTER CITY COUNCIL
Gloucester City Council,23UE,Housing Services,HS001,B&B Payments,1303,12/02/2021,09/02/2021,TRAVELODGE GB0809,GLOUCESTER,,GL1 5SF,REDACTED,556*********3914,3615,TRAVELODGE,110.47,Pound Sterling (826),1.000000000,110.47,Debit,55504431042110271468778,02/03/2021,GLOUCESTER CITY COUNCIL
Gloucester City Council,23UE,Housing Services,HS001,B&B Payments,1303,12/02/2021,09/02/2021,TRAVELODGE GB0809,GLOUCESTER,,GL1 5SF,REDACTED,556*********3914,3615,TRAVELODGE,36.49,Pound Sterling (826),1.000000000,36.49,Debit,55504431042110271468802,02/03/2021,GLOUCESTER CITY COUNCIL
Gloucester City Council,23UE,Housing Services,HS001,B&B Payments,1303,12/02/2021,09/02/2021,TRAVELODGE GB0809,GLOUCESTER,,GL1 5SF,REDACTED,556*********3914,3615,TRAVELODGE,41.49,Pound Sterling (826),1.000000000,41.49,Debit,55504431042110271468794,02/03/2021,GLOUCESTER CITY COUNCIL
Gloucester City Council,23UE,Housing Services,HS001,B&B Payments,1303,12/02/2021,09/02/2021,TRAVELODGE GB0809,GLOUCESTER,,GL1 5SF,REDACTED,556*********3914,3615,TRAVELODGE,105.47,Pound Sterling (826),1.000000000,105.47,Debit,55504431042110271468786,02/03/2021,GLOUCESTER CITY COUNCIL
Gloucester City Council,23UE,Housing Services,HS001,B&B Payments,1303,12/02/2021,09/02/2021,TRAVELODGE GB0816,NR STROUD GLO,,GL10 3SQ,REDACTED,556*********3914,3615,TRAVELODGE,101.47,Pound Sterling (826),1.000000000,101.47,Debit,55504431042110271527326,02/03/2021,GLOUCESTER CITY COUNCIL
Gloucester City Council,23UE,Housing Services,HS001,B&B Payments,1303,15/02/2021,10/02/2021,TRAVELODGE GB0809,GLOUCESTER,,GL1 5SF,REDACTED,556*********3914,3615,TRAVELODGE,110.47,Pound Sterling (826),1.000000000,110.47,Debit,55504431043110285020473,02/03/2021,GLOUCESTER CITY COUNCIL
Gloucester City Council,23UE,Housing Services,HS001,B&B Payments,1303,15/02/2021,11/02/2021,TRAVELODGE GB0809,GLOUCESTER,,GL1 5SF,REDACTED,556*********3914,3615,TRAVELODGE,34.49,Pound Sterling (826),1.000000000,34.49,Debit,55504431044110295428061,02/03/2021,GLOUCESTER CITY COUNCIL
Gloucester City Council,23UE,Housing Services,HS001,B&B Payments,1303,15/02/2021,11/02/2021,TRAVELODGE GB0809,GLOUCESTER,,GL1 5SF,REDACTED,556*********3914,3615,TRAVELODGE,124.96,Pound Sterling (826),1.000000000,124.96,Debit,55504431044110295428079,02/03/2021,GLOUCESTER CITY COUNCIL
Gloucester City Council,23UE,Housing Services,HS001,B&B Payments,1303,15/02/2021,12/02/2021,TRAVELODGE GB0809,GLOUCESTER,,GL1 5SF,REDACTED,556*********3914,3615,TRAVELODGE,95.97,Pound Sterling (826),1.000000000,95.97,Debit,55504431045110200825608,02/03/2021,GLOUCESTER CITY COUNCIL
Gloucester City Council,23UE,Housing Services,HS001,B&B Payments,1303,15/02/2021,12/02/2021,TRAVELODGE GB0809,GLOUCESTER,,GL1 5SF,REDACTED,556*********3914,3615,TRAVELODGE,98.47,Pound Sterling (826),1.000000000,98.47,Debit,55504431045110200825590,02/03/2021,GLOUCESTER CITY COUNCIL
Gloucester City Council,23UE,Housing Services,HS001,B&B Payments,1303,15/02/2021,12/02/2021,TRAVELODGE GB0809,GLOUCESTER,,GL1 5SF,REDACTED,556*********3914,3615,TRAVELODGE,95.97,Pound Sterling (826),1.000000000,95.97,Debit,55504431045110200825582,02/03/2021,GLOUCESTER CITY COUNCIL
Gloucester City Council,23UE,Housing Services,HS001,B&B Payments,1303,15/02/2021,12/02/2021,TRAVELODGE GB0809,GLOUCESTER,,GL1 5SF,REDACTED,556*********3914,3615,TRAVELODGE,98.47,Pound Sterling (826),1.000000000,98.47,Debit,55504431045110200825574,02/03/2021,GLOUCESTER CITY COUNCIL
Gloucester City Council,23UE,Housing Services,HS001,B&B Payments,1303,15/02/2021,12/02/2021,TRAVELODGE GB0809,GLOUCESTER,,GL1 5SF,REDACTED,556*********3914,3615,TRAVELODGE,95.97,Pound Sterling (826),1.000000000,95.97,Debit,55504431045110200825632,02/03/2021,GLOUCESTER CITY COUNCIL
Gloucester City Council,23UE,Housing Services,HS001,B&B Payments,1303,15/02/2021,12/02/2021,TRAVELODGE GB0809,GLOUCESTER,,GL1 5SF,REDACTED,556*********3914,3615,TRAVELODGE,95.97,Pound Sterling (826),1.000000000,95.97,Debit,55504431045110200825624,02/03/2021,GLOUCESTER CITY COUNCIL
Gloucester City Council,23UE,Housing Services,HS001,B&B Payments,1303,15/02/2021,12/02/2021,TRAVELODGE GB0809,GLOUCESTER,,GL1 5SF,REDACTED,556*********3914,3615,TRAVELODGE,98.47,Pound Sterling (826),1.000000000,98.47,Debit,55504431045110200825616,02/03/2021,GLOUCESTER CITY COUNCIL
Gloucester City Council,23UE,Housing Services,HS001,B&B Payments,1303,15/02/2021,12/02/2021,TRAVELODGE GB0821,CHELTENHAM,,GL51 6TA,REDACTED,556*********3914,3615,TRAVELODGE,92.47,Pound Sterling (826),1.000000000,92.47,Debit,55504431045110200944557,02/03/2021,GLOUCESTER CITY COUNCIL
Gloucester City Council,23UE,Housing Services,HS001,B&B Payments,1303,17/02/2021,16/02/2021,TRAVELODGE GB0000,THAME,,OX9 3AT,REDACTED,556*********3914,3615,TRAVELODGE,32.99,Pound Sterling (826),1.000000000,32.99,Debit,55504431047295335019918,02/03/2021,GLOUCESTER CITY COUNCIL
Gloucester City Council,23UE,Housing Services,HS001,B&B Payments,1303,18/02/2021,15/02/2021,TRAVELODGE GB0809,GLOUCESTER,,GL1 5SF,REDACTED,556*********3914,3615,TRAVELODGE,272.42,Pound Sterling (826),1.000000000,272.42,Debit,55504431048110238683703,02/03/2021,GLOUCESTER CITY COUNCIL
Gloucester City Council,23UE,Housing Services,HS001,B&B Payments,1303,18/02/2021,15/02/2021,TRAVELODGE GB0821,CHELTENHAM,,GL51 6TA,REDACTED,556*********3914,3615,TRAVELODGE,209.93,Pound Sterling (826),1.000000000,209.93,Debit,55504431048110238793320,02/03/2021,GLOUCESTER CITY COUNCIL
Gloucester City Council,23UE,Housing Services,HS001,B&B Payments,1303,19/02/2021,16/02/2021,TRAVELODGE GB0809,GLOUCESTER,,GL1 5SF,REDACTED,556*********3914,3615,TRAVELODGE,208.43,Pound Sterling (826),1.000000000,208.43,Debit,55504431049110251108223,02/03/2021,GLOUCESTER CITY COUNCIL
Gloucester City Council,23UE,Housing Services,HS001,B&B Payments,1303,19/02/2021,16/02/2021,TRAVELODGE GB0809,GLOUCESTER,,GL1 5SF,REDACTED,556*********3914,3615,TRAVELODGE,32.49,Pound Sterling (826),1.000000000,32.49,Debit,55504431049110251108215,02/03/2021,GLOUCESTER CITY COUNCIL
Gloucester City Council,23UE,Housing Services,HS001,B&B Payments,1303,22/02/2021,17/02/2021,TRAVELODGE GB0809,GLOUCESTER,,GL1 5SF,REDACTED,556*********3914,3615,TRAVELODGE,148.45,Pound Sterling (826),1.000000000,148.45,Debit,55504431050110264669027,02/03/2021,GLOUCESTER CITY COUNCIL
Gloucester City Council,23UE,Housing Services,HS001,B&B Payments,1303,22/02/2021,17/02/2021,TRAVELODGE GB0809,GLOUCESTER,,GL1 5SF,REDACTED,556*********3914,3615,TRAVELODGE,59.98,Pound Sterling (826),1.000000000,59.98,Debit,55504431050110264669035,02/03/2021,GLOUCESTER CITY COUNCIL
Gloucester City Council,23UE,Housing Services,HS001,B&B Payments,1303,22/02/2021,18/02/2021,TRAVELODGE GB0809,GLOUCESTER,,GL1 5SF,REDACTED,556*********3914,3615,TRAVELODGE,209.43,Pound Sterling (826),1.000000000,209.43,Debit,55504431051110275371349,02/03/2021,GLOUCESTER CITY COUNCIL
Gloucester City Council,23UE,Housing Services,HS001,B&B Payments,1303,22/02/2021,19/02/2021,TRAVELODGE GB0809,GLOUCESTER,,GL1 5SF,REDACTED,556*********3914,3615,TRAVELODGE,88.47,Pound Sterling (826),1.000000000,88.47,Debit,55504431052110281255667,02/03/2021,GLOUCESTER CITY COUNCIL
Gloucester City Council,23UE,Housing Services,HS001,B&B Payments,1303,23/02/2021,22/02/2021,IBIS GLOUCESTER,GLOUCESTER,GBR,GL43DG,REDACTED,556*********3914,3533,HOTEL IBIS,476,Pound Sterling (826),1.000000000,476,Debit,55184221053520549108626,02/03/2021,GLOUCESTER CITY COUNCIL
Gloucester City Council,23UE,Housing Services,HS001,B&B Payments,1303,24/02/2021,22/02/2021,TRAVELODGE GB0819,BRISTOL,,BS1 5TT,REDACTED,556*********3914,3615,TRAVELODGE,60.48,Pound Sterling (826),1.000000000,60.48,Debit,55504431054110200905051,02/03/2021,GLOUCESTER CITY COUNCIL
Gloucester City Council,23UE,Housing Services,HS001,B&B Payments,1303,25/02/2021,24/02/2021,TRAVELODGE GB0000,THAME,,OX9 3AT,REDACTED,556*********3914,3615,TRAVELODGE,253.43,Pound Sterling (826),1.000000000,253.43,Debit,55504431055298161527995,02/03/2021,GLOUCESTER CITY COUNCIL
Gloucester City Council,23UE,Housing Services,HS001,B&B Payments,1303,25/02/2021,22/02/2021,TRAVELODGE GB0809,GLOUCESTER,,GL1 5SF,REDACTED,556*********3914,3615,TRAVELODGE,208.43,Pound Sterling (826),1.000000000,208.43,Debit,55504431055110219633958,02/03/2021,GLOUCESTER CITY COUNCIL
Gloucester City Council,23UE,Housing Services,HS001,B&B Payments,1303,25/02/2021,22/02/2021,TRAVELODGE GB0821,CHELTENHAM,,GL51 6TA,REDACTED,556*********3914,3615,TRAVELODGE,2.5,Pound Sterling (826),1.000000000,2.5,Debit,55504431055110219738369,02/03/2021,GLOUCESTER CITY COUNCIL
Gloucester City Council,23UE,Housing Services,HS001,B&B Payments,1303,25/02/2021,22/02/2021,TRAVELODGE GB0821,CHELTENHAM,,GL51 6TA,REDACTED,556*********3914,3615,TRAVELODGE,209.93,Pound Sterling (826),1.000000000,209.93,Debit,55504431055110219738377,02/03/2021,GLOUCESTER CITY COUNCIL
Gloucester City Council,23UE,Housing Services,HS001,B&B Payments,1303,26/02/2021,23/02/2021,TRAVELODGE GB0809,GLOUCESTER,,GL1 5SF,REDACTED,556*********3914,3615,TRAVELODGE,206.93,Pound Sterling (826),1.000000000,206.93,Debit,55504431056110232921629,02/03/2021,GLOUCESTER CITY COUNCIL
Gloucester City Council,23UE,Housing Services,HS001,B&B Payments,1303,26/02/2021,23/02/2021,TRAVELODGE GB0809,GLOUCESTER,,GL1 5SF,REDACTED,556*********3914,3615,TRAVELODGE,206.93,Pound Sterling (826),1.000000000,206.93,Debit,55504431056110232921637,02/03/2021,GLOUCESTER CITY COUNCIL
Gloucester City Council,23UE,Housing Services,HS001,B&B Payments,1303,26/02/2021,23/02/2021,TRAVELODGE GB0809,GLOUCESTER,,GL1 5SF,REDACTED,556*********3914,3615,TRAVELODGE,152.45,Pound Sterling (826),1.000000000,152.45,Debit,55504431056110232921611,02/03/2021,GLOUCESTER CITY COUNCIL
Gloucester City Council,23UE,Housing Services,HS001,B&B Payments,1303,01/03/2021,25/02/2021,TRAVELODGE GB0809,GLOUCESTER,,GL1 5SF,REDACTED,556*********3914,3615,TRAVELODGE,32.49,Pound Sterling (826),1.000000000,32.49,Debit,55504431058110260606066,02/03/2021,GLOUCESTER CITY COUNCIL
Gloucester City Council,23UE,Destination Marketing,TI001,Advertising & Publicity,3404,15/02/2021,13/02/2021,123 REG LTD,03454502310,,UB3 1HA,REDACTED,556*********5716,5968,CONTINUITY/SUBSCRIPTION MERCHANTS,95.94,Pound Sterling (826),1.000000000,95.94,Debit,55203341045031000185230,02/03/2021,GLOUCESTER CITY COUNCIL
Gloucester City Council,23UE,Destination Marketing,TI001,Advertising & Publicity,3404,23/02/2021,22/02/2021,PADDLE.NET* SNAPWIDGET,"GREAT OAKLEY,",LND,NN18 8JG,REDACTED,556*********5716,5817,DIGITAL GOODS - APPLICATIONS (EXLDG GAME,5.5,Pound Sterling (826),1.000000000,5.5,Debit,85383901054000000883399,02/03/2021,GLOUCESTER CITY COUNCIL
